[Event "Baku Open 2024"]
[Site "Baku"]
[Date "2024.07.03"]
[Round "5.32"]
[White "Ahmadov, Fariz"]
[Black "Raahul V S"]
[Result "1-0"]
[ECO "A45"]
[WhiteElo "2178"]
[BlackElo "2314"]
[Annotator "TA"]
[PlyCount "77"]
[EventDate "2024.06.29"]
[EventType "swiss"]
[EventCountry "AZE"]
[SourceTitle "playchess.com"]
[Source "ChessBase"]
[SourceQuality "1"]
[TimeControl "5400+30"]

{[%evp 9,77,-36,-12,-41,-39,-58,-20,-31,-30,-22,-28,-26,-9,-54,-63,-87,-25,-226,-229,-230,-229,-242,-244,-227,-139,-177,-144,-153,-121,-135,-124,-158,-154,-149,-170,-160,-157,-165,-116,-159,-136,-136,-79,-77,-78,-184,-72,-83,-87,-100,-47,-122,-124,-123,-22,-97,-83,-97,-32,-56,-15,-13,-11,-25,587,556,588,568,562,435]} 1. d4 {[%emt 0:00:25]} Nf6 {[%emt 0:00:48]} 2. Nd2 {[%emt 0:02:57]} d5 {[%emt 0:01:33]} 3. g3 {[%emt 0:00:14]} c5 {[%emt 0:02:10]} 4. e3 {[%emt 0:02:21]} Nc6 {[%emt 0:01:31]} 5. Ngf3 {[%emt 0:00:16]} Bf5 {[%emt 0:04:01]} 6. a3 {[%emt 0:05:27]} e6 {[%emt 0:07:08]} 7. Bg2 {[%emt 0:00:46]} c4 {[%emt 0:02:13]} 8. O-O {[%emt 0:01:21] The position is equal.} Bd6 {[%emt 0:00:53]} 9. Nh4 {[%emt 0:04:09]} Bg4 {[%emt 0:00:09]} 10. Qe1 {[%emt 0:00:29]} O-O {[%emt 0:01:20]} 11. f3 {[%emt 0:01:31]} Bh5 {[%emt 0:00:08]} 12. g4 {[%emt 0:00:14]} Qc7 {[%emt 0:00:20]} 13. gxh5 $2 {[%emt 0:01:51]} (13. Kh1 $1 $11 Bg6 14. Nxg6 hxg6 15. g5) 13... Bxh2+ $19 {[%emt 0:00:11]} 14. Kh1 {[%emt 0:00:02] And now f4 would win.} Bg3 {[%emt 0:00:07]} (14... Nxh5 15. f4 Bg3 16. Qe2 $14) 15. Qe2 {[%emt 0:00:03]} Bxh4 {[%emt 0:00:16]} 16. f4 {[%emt 0:00:06]} Ne8 {[%emt 0:01:50]} 17. Nf3 {[%emt 0:02:43]} Be7 {[%emt 0:00:37]} 18. Bd2 {[%emt 0:00:29]} f5 {[%emt 0:10:02]} 19. b3 {[%emt 0:01:07]} cxb3 {[%emt 0:01:37]} 20. c4 {[%emt 0:00:11]} Nf6 {[%emt 0:01:12]} 21. cxd5 {[%emt 0:00:41]} exd5 {[%emt 0:01:07][%cal Oa7a5]} 22. Qb5 {[%emt 0:02:27]} Qb6 {[%emt 0:12:30]} 23. a4 {[%emt 0:01:55]} Nb4 {[%emt 0:05:48]} (23... Nxh5 24. Qxd5+ Kh8 25. Rfb1 $11) (23... Bb4 $19 24. Rfb1 Bxd2 (24... Nxh5 25. Rxb3 Qxb5 26. axb5 $16) 25. Nxd2 Qd8 (25... Nxh5 26. Qxb6 axb6 27. Bxd5+ Kh8 28. Bf3 $14) (25... Qxb5 26. axb5 Nb4 27. Rxb3 $15)) 24. Rab1 {[%emt 0:06:37]} Qxb5 {[%emt 0:02:32]} 25. axb5 {[%emt 0:00:05]} Ne4 {[%emt 0:00:43]} (25... Nxh5 $142 {aiming for ...Ng3+.} 26. Ne5 Ng3+ 27. Kg1 Ne4 (27... Nxf1 $2 28. Bxb4 Nxe3 29. Bxe7 $17) 28. Bxb4 Bxb4) 26. Rxb3 $17 {[%emt 0:02:15] [#]} Nc2 {[%emt 0:03:18] A dynamic duo of knights.} 27. Bc1 {[%emt 0:04:38]} (27. Ne5 $17) 27... a5 {[%emt 0:02:32]} (27... Ng3+ $19 {is more deadly.} 28. Kg1 Nxf1 29. Kxf1 Rfd8) 28. bxa6 {[%emt 0:00:42]} bxa6 {[%emt 0:00:05]} 29. Ne5 {[%emt 0:00:55]} Bd6 {[%emt 0:05:36]} (29... a5 $17 30. Rb7 Bd6) 30. Nd7 {[%emt 0:06:04] [#]} ({White should play} 30. Rb6 $15 Rf6 31. Rb2) 30... Rf7 $1 {[%emt 0:03:36]} 31. Nc5 {[%emt 0:02:07]} Rc7 {[%emt 0:02:22]} (31... Nxc5 $2 {too greedy.} 32. dxc5 Bxc5 33. Bxd5 $18) (31... a5 $17 32. Rg1 Bxc5 (32... Nxc5 $2 {perishes.} 33. dxc5 Bf8 34. Bxd5 $18) 33. dxc5 a4 (33... Nxc5 $2 34. Rc3 $18) 34. Bxe4 fxe4 (34... axb3 35. Bxd5 Rb8 36. Bb2 $18)) 32. Ne6 {[%emt 0:04:34]} (32. Nxe4 $1 $11 {remains equal.} dxe4 (32... fxe4 33. Bh3 $11) 33. Bh3) 32... Re7 {[%emt 0:03:02]} 33. Bxe4 {[%emt 0:02:13]} dxe4 {[%emt 0:03:43]} ({Better is} 33... fxe4 $17 34. f5 Nb4) 34. d5 $15 {[%emt 0:00:37]} a5 {[%emt 0:03:05] ...Nb4 would now be deadly.} 35. Rb6 {[%emt 0:02:14]} Rd7 {[%emt 0:00:18]} 36. Rg1 $1 {[%emt 0:00:38][%cal Ob6d6] Rxd6! is the strong threat.} a4 $2 {[%emt 0:01:53][%mdl 8192] [#]} (36... Bf8 $1 $11 {and Black is okay.}) 37. Rxd6 $1 $18 {[%emt 0:00:49][%mdl 512] White is clearly winning.} Rb7 {[%emt 0:04:34]} 38. Rc6 {[%emt 0:03:29]} Nb4 {[%emt 0:01:04]} 39. Rc7 {[%emt 0:00:24] What a bad dream for Black.   Weighted Error Value: White=0.24 (precise) /Black=0.39.  Loses game:     	White=1     	Black=1      Mistake:       	White=3     	Black=7      Inaccurate:     	White=2     	Black=3      OK:         	White=12    	Black=11     Best:        	White=2     	Black=1      Strong:       	White=1     	Black=1      Brilliant:      	White=1     	---} 1-0

[Event "Baku Open 2024"]
[Site "Baku"]
[Date "2024.07.03"]
[Round "5.33"]
[White "Zhukova, Natalia"]
[Black "Abdinova, Narmin"]
[Result "1/2-1/2"]
[ECO "E41"]
[WhiteElo "2306"]
[BlackElo "2121"]
[Annotator "TA"]
[PlyCount "125"]
[EventDate "2024.06.29"]
[EventType "swiss"]
[EventCountry "AZE"]
[SourceTitle "playchess.com"]
[Source "ChessBase"]
[SourceQuality "1"]
[TimeControl "5400+30"]

{[%evp 10,125,18,9,8,15,7,12,6,21,27,28,20,28,27,17,23,-4,-6,-4,0,0,0,0,0,0,16,12,13,13,20,0,16,8,35,4,15,14,13,10,10,15,16,15,16,0,0,0,0,0,0,0,0,0,0,0,0,0,0,0,0,0,0,0,0,0,0,0,0,0,0,0,0,0,0,0,0,0,0,0,0,0,0,0,0,0,0,0,0,0,0,0,0,0,6,0,0,0,0,0,6,6,6,0,0,0,0,0,0,0,0,0,0,0,0,0,0,0]} 1. d4 {[%emt 0:00:59]} Nf6 {[%emt 0:00:29]} 2. c4 {[%emt 0:00:13]} e6 {[%emt 0:00:09]} 3. Nc3 {[%emt 0:00:22]} Bb4 {[%emt 0:00:11]} 4. e3 {[%emt 0:00:17]} c5 {[%emt 0:00:13]} 5. Bd3 {[%emt 0:00:29]} d5 {[%emt 0:01:16]} 6. cxd5 {[%emt 0:01:57]} exd5 {[%emt 0:01:19]} 7. a3 {[%emt 0:01:01]} Ba5 {[%emt 0:05:00]} 8. dxc5 {[%emt 0:02:38] Threatening b4.} Bxc3+ {[%emt 0:00:06]} 9. bxc3 {[%emt 0:00:05]} O-O {[%emt 0:00:06]} 10. a4 {[%emt 0:07:11]} Qa5 {[%emt 0:07:22]} 11. Ne2 {[%emt 0:04:02]} Nbd7 {[%emt 0:00:50]} 12. O-O {[%emt 0:10:07]} Nxc5 {[%emt 0:00:27]} 13. c4 {[%emt 0:10:49]} Nxd3 {[%emt 0:05:01]} 14. Qxd3 {[%emt 0:00:08]} dxc4 {[%emt 0:00:14]} 15. Qxc4 {[%emt 0:00:02]} b6 {[%emt 0:20:35] Strongly threatening ...Ba6.} 16. Qc3 {[%emt 0:03:49]} Qxc3 {[%emt 0:02:53]} 17. Nxc3 {[%emt 0:00:03]} Ba6 {[%emt 0:00:05]} 18. Rd1 {[%emt 0:01:09]} Rfd8 {[%emt 0:02:03]} 19. Bb2 {[%emt 0:05:53]} Bc4 {[%emt 0:02:47]} 20. f3 {[%emt 0:15:42]} a6 {[%emt 0:03:33]} 21. e4 {[%emt 0:03:41]} Bb3 {[%emt 0:13:08]} 22. Rdc1 {[%emt 0:07:11]} Rd2 {[%emt 0:02:41] The position is equal.} 23. Ba3 {[%emt 0:00:10]} Nd7 {[%emt 0:05:50]} 24. Rab1 {[%emt 0:00:18]} Be6 {[%emt 0:01:58]} 25. Rd1 {[%emt 0:08:29]} Rxd1+ {[%emt 0:01:11]} 26. Rxd1 {[%emt 0:00:03]} Ne5 {[%emt 0:12:02]} 27. f4 {[%emt 0:00:19]} Nc4 {[%emt 0:00:06]} 28. Bc1 {[%emt 0:00:04] [#] Black must now prevent f5.} g6 {[%emt 0:00:38]} 29. f5 {[%emt 0:03:31]} gxf5 {[%emt 0:00:03]} 30. exf5 {[%emt 0:00:05]} Bxf5 {[%emt 0:00:08]} 31. Bh6 {[%emt 0:03:15]} Be6 {[%emt 0:13:36]} 32. Nd5 {[%emt 0:04:22]} Bxd5 {[%emt 0:00:00]} 33. Rxd5 $11 {[%emt 0:00:02][%mdl 4096] Endgame. KRB-KRN} f6 {[%emt 0:00:00] Prevents Rg5+.} 34. Rd7 {[%emt 0:00:52]} b5 {[%emt 0:00:00]} 35. axb5 {[%emt 0:03:34]} axb5 {[%emt 0:00:00]} 36. Rg7+ {[%emt 0:00:52]} Kh8 {[%emt 0:00:00]} 37. Rb7 {[%emt 0:01:17]} Nd6 {[%emt 0:00:00]} 38. Rb6 {[%emt 0:04:29]} Rd8 {[%emt 0:00:38]} 39. h3 {[%emt 0:00:00]} Kg8 {[%emt 0:00:40]} 40. Bf4 {[%emt 0:00:00]} Ne4 {[%emt 0:00:45]} 41. Rxb5 {[%emt 0:00:00]} Rd1+ {[%emt 0:00:39]} 42. Kh2 {[%emt 0:00:00]} Kf7 {[%emt 0:00:15]} 43. h4 {[%emt 0:00:00]} Nd6 {[%emt 0:01:45]} 44. Ra5 {[%emt 0:00:12]} Nc4 {[%emt 0:01:07]} 45. Rc5 {[%emt 0:00:47]} Nb6 {[%emt 0:00:37]} 46. h5 {[%emt 0:02:10]} Nd5 {[%emt 0:00:11]} 47. Bh6 {[%emt 0:00:23]} Ne7 {[%emt 0:00:29]} 48. g4 {[%emt 0:00:13]} Ke6 {[%emt 0:00:41]} 49. Ra5 {[%emt 0:00:38]} Rd4 {[%emt 0:00:38]} 50. Kh3 {[%emt 0:00:30]} Rd3+ {[%emt 0:00:08]} 51. Kg2 {[%emt 0:00:16]} Ng8 {[%emt 0:00:34]} 52. Bf4 {[%emt 0:00:36]} Ne7 {[%emt 0:00:33]} 53. Ra7 {[%emt 0:00:48]} Nd5 {[%emt 0:00:42]} 54. Bh6 {[%emt 0:00:04]} Ne7 {[%emt 0:00:36]} 55. Bf8 {[%emt 0:00:10]} Rd7 {[%emt 0:00:20]} 56. Rxd7 {[%emt 0:01:30]} Kxd7 {[%emt 0:00:04]} 57. Bxe7 {[%emt 0:00:13]} Kxe7 {[%emt 0:00:03] KPP-KPP} 58. Kf3 {[%emt 0:00:03]} h6 {[%emt 0:00:34]} 59. Kf4 {[%emt 0:00:10]} Ke6 {[%emt 0:00:06]} 60. Ke4 {[%emt 0:00:03]} Ke7 $1 {[%emt 0:00:20]} 61. Kf5 {[%emt 0:00:46] [#] Threatening mate with Kg6.} Kf7 {[%emt 0:00:07]} 62. Kf4 {[%emt 0:00:12] Intending Kf5 and mate.} Ke6 {[%emt 0:00:13]} 63. Ke4 {[%emt 0:00:00] Not much happened in this game.   Weighted Error Value: White=0.03 (flawless) /Black=0.02 (flawless) .  Inaccurate:     	White=2     	Black=1      OK:         	White=26    	Black=33     Best:        	---       	Black=1      Strong:       	---       	Black=1} 1/2-1/2

[Event "Baku Open 2024"]
[Site "Baku"]
[Date "2024.07.03"]
[Round "5.34"]
[White "Novozhilov, Semen"]
[Black "Goriachkina, Oksana"]
[Result "1-0"]
[ECO "D78"]
[WhiteElo "2288"]
[BlackElo "2045"]
[Annotator "RC"]
[PlyCount "87"]
[EventDate "2024.06.29"]
[EventType "swiss"]
[EventCountry "AZE"]
[SourceTitle "playchess.com"]
[Source "ChessBase"]
[SourceQuality "1"]
[TimeControl "5400+30"]

1. Nf3 {[%emt 0:00:03]} Nf6 {[%emt 0:00:04]} 2. g3 {[%emt 0:00:07]} g6 {[%emt 0:00:05]} 3. Bg2 {[%emt 0:00:06]} Bg7 {[%emt 0:00:04]} 4. O-O {[%emt 0:00:07]} O-O {[%emt 0:00:16]} 5. d4 {[%emt 0:00:05]} d5 {[%emt 0:00:07]} 6. c4 {[%emt 0:00:05]} c6 {[%emt 0:00:03]} 7. Qa4 {[%emt 0:00:15]} Qb6 {[%emt 0:20:11]} 8. Nc3 {[%emt 0:09:29]} Rd8 {[%emt 0:04:57]} 9. Rd1 {[%emt 0:13:22]} Bf5 {[%emt 0:28:40]} 10. Ne5 {[%emt 0:11:59]} Nbd7 {[%emt 0:08:24]} 11. c5 {[%emt 0:18:31]} Qc7 {[%emt 0:01:44]} 12. Bf4 {[%emt 0:00:15]} Qc8 {[%emt 0:02:39]} 13. f3 {[%emt 0:15:50]} h6 {[%emt 0:02:53]} 14. g4 {[%emt 0:04:11]} Be6 {[%emt 0:00:22]} 15. b4 {[%emt 0:01:33]} g5 {[%emt 0:11:58]} 16. Bg3 {[%emt 0:00:09]} Nh7 {[%emt 0:00:18]} 17. Nxd7 {[%emt 0:03:12]} Bxd7 {[%emt 0:01:18]} 18. e3 {[%emt 0:02:06]} Nf8 {[%emt 0:01:54]} 19. b5 {[%emt 0:05:42]} Ng6 {[%emt 0:04:03]} 20. bxc6 {[%emt 0:00:42]} Bxc6 {[%emt 0:00:38]} 21. Qb3 {[%emt 0:00:09]} Kh8 {[%emt 0:05:46]} 22. Rab1 {[%emt 0:00:57]} Rd7 {[%emt 0:01:45]} 23. f4 {[%emt 0:02:24]} e6 {[%emt 0:01:09]} 24. fxg5 {[%emt 0:00:35]} hxg5 {[%emt 0:00:05]} 25. Nb5 {[%emt 0:00:12]} Bxb5 {[%emt 0:00:38]} 26. Qxb5 {[%emt 0:00:06]} Qd8 {[%emt 0:01:48]} 27. Rd2 {[%emt 0:02:24]} Rc8 {[%emt 0:00:28]} 28. Qa4 {[%emt 0:00:28]} a6 {[%emt 0:01:26]} 29. Rdb2 {[%emt 0:01:58]} e5 {[%emt 0:00:37]} 30. Rxb7 {[%emt 0:00:45]} Rxb7 {[%emt 0:00:03]} 31. Rxb7 {[%emt 0:00:08]} exd4 {[%emt 0:00:26]} 32. exd4 {[%emt 0:00:08]} Qf6 {[%emt 0:00:16]} 33. Bf2 {[%emt 0:00:43]} Nf4 {[%emt 0:01:13]} 34. Bf1 {[%emt 0:00:18]} Rd8 {[%emt 0:00:39]} 35. c6 {[%emt 0:02:15]} Qe6 {[%emt 0:00:19]} 36. h3 {[%emt 0:00:04]} Rc8 {[%emt 0:00:39]} 37. c7 {[%emt 0:00:44]} f5 {[%emt 0:00:33]} 38. gxf5 {[%emt 0:01:48]} Qxf5 {[%emt 0:00:09]} 39. Rb8 {[%emt 0:00:06]} Kh7 {[%emt 0:00:43]} 40. Rxc8 {[%emt 0:00:44]} Qxc8 {[%emt 0:00:05]} 41. Qc2+ {[%emt 0:00:26]} Kh6 {[%emt 0:00:06]} 42. Qc6+ {[%emt 0:01:22]} Kh7 {[%emt 0:00:39]} 43. Qd6 {[%emt 0:00:11]} Qf5 {[%emt 0:01:19]} 44. Qxa6 {[%emt 0:01:14]} 1-0

[Event "Baku Open 2024"]
[Site "Baku"]
[Date "2024.07.03"]
[Round "5.35"]
[White "Ajay Santhosh Parvathareddy"]
[Black "Dolgun, Can"]
[Result "1-0"]
[ECO "D10"]
[WhiteElo "2163"]
[BlackElo "2264"]
[Annotator "TA"]
[PlyCount "127"]
[EventDate "2024.06.29"]
[EventType "swiss"]
[EventCountry "AZE"]
[SourceTitle "playchess.com"]
[Source "ChessBase"]
[SourceQuality "1"]
[TimeControl "5400+30"]

{[%evp 9,127,10,6,15,18,29,28,21,25,31,52,75,63,28,50,22,42,47,81,100,83,31,25,23,35,34,33,35,43,48,34,39,124,122,128,127,124,122,124,124,125,120,128,54,71,33,39,37,48,48,64,49,85,85,85,-1230,78,78,87,0,0,0,84,84,92,92,133,123,123,123,123,123,150,110,119,0,106,106,155,156,155,156,184,184,184,65,256,168,417,668,631,658,667,687,918,760,493,802,1437,1290,1441,1347,1139,1138,1188,957,817,535,1630,1608,2163,1969,29981,29982,29984,29984,29985,29986,29989,29983]} 1. d4 {[%emt 0:00:00]} d5 {[%emt 0:00:01][%cal Bd7d5,Bd5c4][%mdl 32]} 2. c4 {[%emt 0:00:06]} c6 {[%emt 0:00:03]} 3. Nc3 {[%emt 0:00:04]} dxc4 {[%emt 0:00:11]} 4. e3 {[%emt 0:00:04]} b5 {[%emt 0:00:09][%cal Bb7b5,Bb5b4][%mdl 32]} 5. a4 {[%emt 0:00:04]} b4 {[%emt 0:00:04]} 6. Ne4 {[%emt 0:00:04]} Qd5 {[%emt 0:00:05]} 7. Nd2 {[%emt 0:00:04][%cal Be4d2,Bd2b1,Bb1c3][%mdl 32]} c3 {[%emt 0:00:04]} 8. bxc3 {[%emt 0:00:03] White has an edge.} bxc3 {[%emt 0:00:04]} 9. Nb1 {[%emt 0:00:05]} e6 {[%emt 0:00:48]} 10. Nxc3 {[%emt 0:00:38]} Bb4 {[%emt 0:00:47]} 11. Nge2 {[%emt 0:01:22]} Ba6 {[%emt 0:02:24]} 12. Bd2 {[%emt 0:01:11]} Qa5 {[%emt 0:01:27]} 13. Ne4 {[%emt 0:02:56]} Nf6 {[%emt 0:05:58]} 14. Nxf6+ {[%emt 0:14:14]} gxf6 {[%emt 0:00:55]} 15. Bxb4 {[%emt 0:00:05]} (15. Nf4 $16) 15... Qxb4+ $14 {[%emt 0:00:05]} 16. Qd2 {[%emt 0:00:04]} Qxd2+ {[%emt 0:01:19]} 17. Kxd2 {[%emt 0:00:05]} Nd7 {[%emt 0:00:19]} 18. Rc1 {[%emt 0:00:18]} Rc8 {[%emt 0:01:42]} 19. Nc3 {[%emt 0:00:20][%cal Be2c3,Bc3b5,Bb5a7,Ba7c6][%mdl 32]} Bxf1 {[%emt 0:02:31]} 20. Rhxf1 {[%emt 0:00:09][%cal Oc3b5]} f5 {[%emt 0:01:45] [#]} (20... Ke7 $14) 21. Nb5 $1 $16 {[%emt 0:00:09][%mdl 512]} O-O {[%emt 0:01:46]} 22. Nxa7 {[%emt 0:01:07] White is more active.} Ra8 {[%emt 0:00:13]} 23. Nxc6 {[%emt 0:00:05]} Rxa4 {[%emt 0:00:04]} 24. Rc2 {[%emt 0:00:14] Prevents Ra2.} Rfa8 {[%emt 0:02:13]} 25. Rb1 {[%emt 0:03:07]} Nf6 {[%emt 0:01:19]} 26. f3 {[%emt 0:00:29]} (26. Ke2 $16) 26... Ra3 {[%emt 0:00:35]} 27. Rb7 {[%emt 0:05:38]} Nd5 {[%emt 0:04:50]} 28. Ne7+ {[%emt 0:00:07]} Nxe7 {[%emt 0:00:05]} 29. Rxe7 $14 {[%emt 0:00:04][%mdl 4096] Endgame. KRR-KRR} Rb3 {[%emt 0:00:05]} 30. Rec7 {[%emt 0:00:18]} Raa3 {[%emt 0:00:47]} 31. R7c3 {[%emt 0:00:09]} Rxc3 {[%emt 1:13:22]} 32. Rb2 {[%emt 1:13:07][%mdl 8192] [#]} (32. Rxc3 $16 Ra1 33. e4) 32... Rc2+ $2 33. Rxc2 $16 {[%emt 0:00:00] KR-KR} ({Much weaker is} 33. Kxc2 $6 Rxe3 34. Ra2 Kg7 $11) 33... Ra1 {[%emt 0:00:00]} 34. Rc1 {[%emt 0:00:00]} (34. Ke2 $16) 34... Ra2+ $11 {[%emt 0:00:00]} 35. Rc2 {[%emt 0:00:00]} ({Better is} 35. Kd3 $11) 35... Ra1 $16 {[%emt 0:00:00]} 36. Ke2 {[%emt 0:00:00]} Rh1 {[%emt 0:00:00]} 37. h3 {[%emt 0:00:00]} Rg1 {[%emt 0:00:00]} 38. Kf2 {[%emt 0:00:00]} Rd1 {[%emt 0:00:00]} 39. Kg3 {[%emt 0:00:00]} Kg7 {[%emt 0:00:00]} 40. Kf4 {[%emt 0:00:00]} Rh1 {[%emt 0:00:00]} 41. Ke5 {[%emt 0:00:00]} Re1 {[%emt 0:00:00]} 42. Kf4 {[%emt 0:00:00]} (42. Rc3 $16) 42... Ra1 {[%emt 0:00:00]} (42... Rh1 $1 $11) 43. Rd2 {[%emt 0:00:00]} Ra4 {[%emt 0:00:00]} (43... Ra5 $142) 44. g4 {[%emt 0:00:00]} fxg4 {[%emt 0:00:00]} 45. hxg4 {[%emt 0:00:00][%cal Bh3g4,Bg4g5][%mdl 32]} Ra5 {[%emt 0:00:00]} 46. e4 {[%emt 0:00:00] d5 is the strong threat.} Kf6 {[%emt 0:00:00]} 47. Rd3 {[%emt 0:00:00]} (47. d5 $18 {Threatens to win with g5+.} exd5 48. exd5 Ra4+ 49. Ke3) 47... Ke7 $2 {[%emt 0:00:00]} (47... h5 $14) 48. Rc3 {[%emt 0:00:00]} Ra4 $2 {[%emt 0:00:00]} (48... h6 49. Rc7+ Kf6 50. e5+ Kg7) 49. Rc7+ $18 {[%emt 0:00:00]} Kf6 {[%emt 0:00:00]} 50. g5+ {[%emt 0:00:00]} Kg6 {[%emt 0:00:00]} 51. Ke5 {[%emt 0:00:00]} Ra3 {[%emt 0:00:00]} 52. f4 {[%emt 0:00:00]} Re3 {[%emt 0:00:00]} 53. Rc6 {[%emt 0:00:00]} Kg7 {[%emt 0:00:00]} 54. f5 {[%emt 0:00:00]} exf5 {[%emt 0:00:00]} 55. Kxf5 {[%emt 0:00:00]} Rf3+ {[%emt 0:00:00]} 56. Ke5 {[%emt 0:00:00]} Rg3 {[%emt 0:00:00]} 57. Kf4 {[%emt 0:00:00]} Rd3 {[%emt 0:00:00]} 58. d5 {[%emt 0:00:00][%cal Bd4d5,Bd5d6,Bd6d7][%mdl 32] Strongly threatening d6.} Kf8 {[%emt 0:00:00]} 59. Ke5 {[%emt 0:00:00]} Rg3 {[%emt 0:00:00]} 60. d6 {[%emt 0:00:00] White wants to mate with Rc8+.} Rxg5+ {[%emt 0:00:00]} 61. Kf4 {[%emt 0:00:00] White mates.} Rg6 {[%emt 0:00:00]} 62. Rc8+ {[%emt 0:00:00]} Kg7 {[%emt 0:00:00]} 63. d7 {[%emt 0:00:00]} Rf6+ {[%emt 0:00:00]} 64. Ke3 {[%emt 0:16:00] What a bad dream for Black.   Weighted Error Value: White=0.34/Black=0.45.  Loses game:     	White=1     	Black=1      Missed win:     	---       	Black=1      Mistake:       	White=6     	Black=4      Inaccurate:     	White=4     	Black=4      OK:         	White=20    	Black=16     Best:        	White=4     	Black=4      Brilliant:      	White=1     	---} 1-0

[Event "Baku Open 2024"]
[Site "Baku"]
[Date "2024.07.03"]
[Round "5.36"]
[White "Sherali Pattnaik"]
[Black "Avinash Ramesh"]
[Result "1-0"]
[ECO "C60"]
[WhiteElo "1955"]
[BlackElo "2252"]
[Annotator "RC"]
[PlyCount "123"]
[EventDate "2024.06.29"]
[EventType "swiss"]
[EventCountry "AZE"]
[SourceTitle "playchess.com"]
[Source "ChessBase"]
[SourceQuality "1"]
[TimeControl "5400+30"]

1. e4 {[%emt 0:00:08]} e5 {[%emt 0:08:28]} 2. Nf3 {[%emt 0:00:04]} Nc6 {[%emt 0:00:04]} 3. Bb5 {[%emt 0:00:03]} Nge7 {[%emt 0:00:04]} 4. d4 {[%emt 0:00:28]} exd4 {[%emt 0:00:09]} 5. Nxd4 {[%emt 0:00:05]} Nxd4 {[%emt 0:00:11]} 6. Qxd4 {[%emt 0:00:09]} Nc6 {[%emt 0:00:04]} 7. Qe3 {[%emt 0:00:50]} Be7 {[%emt 0:00:06]} 8. Bd2 {[%emt 0:01:56]} O-O {[%emt 0:00:22]} 9. Bc3 {[%emt 0:02:55]} d5 {[%emt 0:08:22]} 10. Bxc6 {[%emt 0:12:59]} bxc6 {[%emt 0:00:15]} 11. Nd2 {[%emt 0:00:18]} c5 {[%emt 0:09:13]} 12. Qg3 {[%emt 0:31:54]} d4 {[%emt 0:00:49]} 13. Ba5 {[%emt 0:00:04]} Bd6 {[%emt 0:00:28]} 14. f4 {[%emt 0:00:16]} Ba6 {[%emt 0:00:56]} 15. O-O-O {[%emt 0:01:54]} Qd7 {[%emt 0:08:56]} 16. e5 {[%emt 0:07:26]} Be7 {[%emt 0:01:30]} 17. Kb1 {[%emt 0:03:51]} Kh8 {[%emt 0:01:31]} 18. Ne4 {[%emt 0:03:12]} c4 {[%emt 0:01:29]} 19. f5 {[%emt 0:03:19]} Qxf5 {[%emt 0:03:41]} 20. Rxd4 {[%emt 0:00:20]} c5 {[%emt 0:00:29]} 21. Nd6 {[%emt 0:00:11]} Bxd6 {[%emt 0:08:55]} 22. Rxd6 {[%emt 0:00:10]} Bc8 {[%emt 0:00:08]} 23. Qe3 {[%emt 0:06:47]} Be6 {[%emt 0:00:27]} 24. Rg1 {[%emt 0:00:49]} Qh5 {[%emt 0:04:21]} 25. h3 {[%emt 0:02:14]} c3 {[%emt 0:03:37]} 26. Bxc3 {[%emt 0:00:20]} Qh4 {[%emt 0:00:39]} 27. g4 {[%emt 0:03:32]} a5 {[%emt 0:01:10]} 28. Rf1 {[%emt 0:03:56]} Qe7 {[%emt 0:01:43]} 29. Qe4 {[%emt 0:01:41]} a4 {[%emt 0:04:35]} 30. a3 {[%emt 0:00:03]} Rac8 {[%emt 0:01:23]} 31. h4 {[%emt 0:00:34]} Rcd8 {[%emt 0:00:40]} 32. Qf4 {[%emt 0:01:54]} Rxd6 {[%emt 0:10:09]} 33. exd6 {[%emt 0:00:01]} Qxh4 {[%emt 0:00:11]} 34. Rg1 {[%emt 0:04:17]} h6 {[%emt 0:00:22]} 35. Qxa4 {[%emt 0:03:06]} Qf2 {[%emt 0:04:54]} 36. Rh1 {[%emt 0:00:37]} Qf3 {[%emt 0:01:35]} 37. Re1 {[%emt 0:00:59]} Rd8 {[%emt 0:03:17]} 38. Be5 {[%emt 0:01:41]} Bxg4 {[%emt 0:03:43]} 39. Qa5 {[%emt 0:00:42]} Rc8 {[%emt 0:01:07]} 40. Qd2 {[%emt 0:03:17]} Kh7 {[%emt 0:01:33]} 41. Bc3 {[%emt 0:01:06]} Rd8 {[%emt 0:00:23]} 42. Re7 {[%emt 0:00:20]} Be6 {[%emt 0:01:53]} 43. b3 {[%emt 0:00:04]} Qg3 {[%emt 0:02:25]} 44. d7 {[%emt 0:00:35]} Qg5 {[%emt 0:00:23]} 45. Qd3+ {[%emt 0:00:57]} Qg6 {[%emt 0:00:17]} 46. Qd6 {[%emt 0:00:12]} Qg5 {[%emt 0:02:11]} 47. Ba5 {[%emt 0:00:06]} Rxd7 {[%emt 0:01:58]} 48. Rxd7 {[%emt 0:00:02]} Bxd7 {[%emt 0:00:04]} 49. Qxd7 {[%emt 0:00:04]} c4 {[%emt 0:00:01]} 50. Bc3 {[%emt 0:00:30]} cxb3 {[%emt 0:00:09]} 51. Qxf7 {[%emt 0:00:56]} bxc2+ {[%emt 0:00:27]} 52. Kxc2 {[%emt 0:00:04]} h5 {[%emt 0:00:25]} 53. a4 {[%emt 0:01:24]} h4 {[%emt 0:00:09]} 54. Qf3 {[%emt 0:00:19]} Kg8 {[%emt 0:03:39]} 55. a5 {[%emt 0:00:22]} Qg6+ {[%emt 0:00:07]} 56. Kb2 {[%emt 0:00:09]} Qe6 {[%emt 0:00:17]} 57. Qa8+ {[%emt 0:00:34]} Kh7 {[%emt 0:00:05]} 58. Qb7 {[%emt 0:00:08]} Qg4 {[%emt 0:00:17]} 59. Qxg7+ {[%emt 0:00:17]} Qxg7 {[%emt 0:00:19]} 60. Bxg7 {[%emt 0:00:01]} Kxg7 {[%emt 0:01:40]} 61. a6 {[%emt 0:00:02]} h3 {[%emt 0:00:05]} 62. a7 {[%emt 0:00:02]} 1-0